[Event "Titled Tuesday Blitz April 26 Late 2022"]
[White "Jaferian, Koosha"]
[Black "Gutierrez Olivares, Daniel"]
[WhiteFideId "12507440"]
[BlackFideId "2264005"]
[WhiteElo "2030"]
[BlackElo "2317"]
[Result "1-0"]
[Round "03"]
[TimeControl "180+1"]
[Date "2022.04.26"]
[WhiteClock "0:00:06"]
[BlackClock "0:00:03"]

1. Nf3 {[%clk 0:03:00]}  Nf6 {[%clk 0:02:59]} 2. b3 {[%clk 0:03:01]}  d6 {[%clk 0:02:59]} 3. Bb2 {[%clk 0:03:01]}  Nbd7 {[%clk 0:02:59]} 4. d4 {[%clk 0:03:02]}  g6 {[%clk 0:03:00]} 5. g3 {[%clk 0:03:02]}  Bg7 {[%clk 0:03:00]} 6. Bg2 {[%clk 0:03:03]}  e5 {[%clk 0:02:59]} 7. dxe5 {[%clk 0:03:02]}  Ng4 {[%clk 0:02:59]} 8. c4 {[%clk 0:03:03]}  O-O {[%clk 0:02:57]} 9. O-O {[%clk 0:03:02]}  Re8 {[%clk 0:02:56]} 10. Nc3 {[%clk 0:03:02]}  dxe5 {[%clk 0:02:55]} 11. h3 {[%clk 0:02:57]}  Nh6 {[%clk 0:02:50]} 12. Qd2 {[%clk 0:02:50]}  Nf5 {[%clk 0:02:48]} 13. e3 {[%clk 0:02:27]}  c6 {[%clk 0:02:18]} 14. Rfd1 {[%clk 0:02:21]}  Qc7 {[%clk 0:01:31]} 15. Rac1 {[%clk 0:02:18]}  a5 {[%clk 0:01:25]} 16. Ne4 {[%clk 0:02:06]}  a4 {[%clk 0:01:17]} 17. g4 {[%clk 0:02:06]}  Nh6 {[%clk 0:01:12]} 18. Nd6 {[%clk 0:02:07]}  Rd8 {[%clk 0:01:05]} 19. g5 {[%clk 0:02:07]}  Nf5 {[%clk 0:01:03]} 20. Nxf5 {[%clk 0:02:08]}  gxf5 {[%clk 0:01:04]} 21. Qd6 {[%clk 0:02:03]}  Qxd6 {[%clk 0:00:57]} 22. Rxd6 {[%clk 0:02:04]}  e4 {[%clk 0:00:46]} 23. Bxg7 {[%clk 0:01:58]}  exf3 {[%clk 0:00:46]} 24. Bf6 {[%clk 0:01:54]}  Re8 {[%clk 0:00:27]} 25. Bxf3 {[%clk 0:01:54]}  axb3 {[%clk 0:00:26]} 26. axb3 {[%clk 0:01:53]}  Nc5 {[%clk 0:00:26]} 27. b4 {[%clk 0:01:34]}  Ne4 {[%clk 0:00:22]} 28. Rd4 {[%clk 0:01:28]}  Ra2 {[%clk 0:00:17]} 29. Rf1 {[%clk 0:01:18]}  h6 {[%clk 0:00:12]} 30. Bxe4 {[%clk 0:01:16]}  fxe4 {[%clk 0:00:11]} 31. gxh6 {[%clk 0:01:16]}  Bxh3 {[%clk 0:00:11]} 32. Rfd1 {[%clk 0:01:13]}  Kh7 {[%clk 0:00:07]} 33. Rd8 {[%clk 0:01:14]}  Rxd8 {[%clk 0:00:06]} 34. Rxd8 {[%clk 0:01:15]}  Kxh6 {[%clk 0:00:06]} 35. Rb8 {[%clk 0:01:05]}  Bg4 {[%clk 0:00:06]} 36. Rxb7 {[%clk 0:00:56]}  Bf3 {[%clk 0:00:04]} 37. Bd4 {[%clk 0:00:47]}  Rc2 {[%clk 0:00:04]} 38. Rxf7 {[%clk 0:00:37]}  Rxc4 {[%clk 0:00:03]} 39. Kh2 {[%clk 0:00:37]}  Rxb4 {[%clk 0:00:03]} 40. Kg3 {[%clk 0:00:37]}  Rb5 {[%clk 0:00:03]} 41. Rf6+ {[%clk 0:00:36]}  Kg5 {[%clk 0:00:03]} 42. Rxc6 {[%clk 0:00:35]}  Rb1 {[%clk 0:00:03]} 43. Rc5+ {[%clk 0:00:34]}  Kg6 {[%clk 0:00:03]} 44. Kf4 {[%clk 0:00:30]}  Rg1 {[%clk 0:00:03]} 45. Rc6+ {[%clk 0:00:30]}  Kh5 {[%clk 0:00:03]} 46. Bf6 {[%clk 0:00:22]}  Rg4+ {[%clk 0:00:04]} 47. Ke5 {[%clk 0:00:23]}  Rg2 {[%clk 0:00:04]} 48. Rc2 {[%clk 0:00:18]}  Bd1 {[%clk 0:00:04]} 49. Rd2 {[%clk 0:00:18]}  Bf3 {[%clk 0:00:05]} 50. Be7 {[%clk 0:00:16]}  Kg6 {[%clk 0:00:05]} 51. Bb4 {[%clk 0:00:16]}  Rh2 {[%clk 0:00:04]} 52. Rd6+ {[%clk 0:00:16]}  Kf7 {[%clk 0:00:04]} 53. Rf6+ {[%clk 0:00:15]}  Kg7 {[%clk 0:00:04]} 54. Bf8+ {[%clk 0:00:15]}  Kg8 {[%clk 0:00:02]} 55. Bc5 {[%clk 0:00:11]}  Rxf2 {[%clk 0:00:02]} 56. Ra6 {[%clk 0:00:07]}  Rg2 {[%clk 0:00:03]} 57. Kf5 {[%clk 0:00:05]}  Bg4+ {[%clk 0:00:02]} 58. Kf6 {[%clk 0:00:04]}  Kh7 {[%clk 0:00:02]} 59. Ra7+ {[%clk 0:00:05]}  Kh6 {[%clk 0:00:02]} 60. Bf8+ {[%clk 0:00:05]}  Kh5 {[%clk 0:00:03]} 61. Rh7# {[%clk 0:00:06]} 1-0


[Site "https://www.chess.com"]

[Event "Titled Tuesday Blitz April 26 Late 2022"]
[White "Javakhishvili, Lela"]
[Black "Sadovsky, Artem"]
[WhiteFideId "13601458"]
[BlackFideId "4155840"]
[WhiteElo "2324"]
[BlackElo "2314"]
[Result "1/2-1/2"]
[Round "03"]
[TimeControl "180+1"]
[Date "2022.04.26"]
[WhiteClock "0:00:31"]
[BlackClock "0:00:04"]

1. d4 {[%clk 0:03:00]}  f5 {[%clk 0:02:52]} 2. Nc3 {[%clk 0:02:58]}  Nf6 {[%clk 0:02:50]} 3. Bg5 {[%clk 0:02:57]}  d5 {[%clk 0:02:45]} 4. Bxf6 {[%clk 0:02:56]}  exf6 {[%clk 0:02:45]} 5. e3 {[%clk 0:02:57]}  c6 {[%clk 0:02:35]} 6. Bd3 {[%clk 0:02:57]}  Bd6 {[%clk 0:02:35]} 7. Qf3 {[%clk 0:02:52]}  g6 {[%clk 0:02:34]} 8. Nge2 {[%clk 0:02:52]}  Be6 {[%clk 0:02:33]} 9. h3 {[%clk 0:02:51]}  h5 {[%clk 0:02:27]} 10. g4 {[%clk 0:02:41]}  fxg4 {[%clk 0:02:05]} 11. hxg4 {[%clk 0:02:35]}  Bxg4 {[%clk 0:02:00]} 12. Qxg4 {[%clk 0:02:30]}  hxg4 {[%clk 0:01:56]} 13. Rxh8+ {[%clk 0:02:30]}  Bf8 {[%clk 0:01:57]} 14. Bxg6+ {[%clk 0:02:25]}  Kd7 {[%clk 0:01:54]} 15. O-O-O {[%clk 0:02:20]}  Kc7 {[%clk 0:01:48]} 16. Nf4 {[%clk 0:02:18]}  Kd6 {[%clk 0:01:43]} 17. e4 {[%clk 0:02:10]}  Nd7 {[%clk 0:01:34]} 18. exd5 {[%clk 0:02:10]}  cxd5 {[%clk 0:01:33]} 19. Nfxd5 {[%clk 0:01:45]}  f5 {[%clk 0:01:24]} 20. Kb1 {[%clk 0:01:38]}  Qg5 {[%clk 0:01:20]} 21. Bf7 {[%clk 0:01:36]}  Qg7 {[%clk 0:01:08]} 22. Rdh1 {[%clk 0:01:02]}  Qxf7 {[%clk 0:01:06]} 23. R1h7 {[%clk 0:00:59]}  Qe6 {[%clk 0:00:51]} 24. Nb5+ {[%clk 0:00:51]}  Kc6 {[%clk 0:00:49]} 25. c4 {[%clk 0:00:51]}  a6 {[%clk 0:00:12]} 26. Nb4+ {[%clk 0:00:43]}  Bxb4 {[%clk 0:00:08]} 27. d5+ {[%clk 0:00:43]}  Qxd5 {[%clk 0:00:01]} 28. cxd5+ {[%clk 0:00:40]}  Kxb5 {[%clk 0:00:01]} 29. Rxa8 {[%clk 0:00:39]}  Nf6 {[%clk 0:00:01]} 30. Rf7 {[%clk 0:00:38]}  Nxd5 {[%clk 0:00:01]} 31. Rxf5 {[%clk 0:00:38]}  Kc6 {[%clk 0:00:01]} 32. Rxd5 {[%clk 0:00:37]}  Kxd5 {[%clk 0:00:01]} 33. Rf8 {[%clk 0:00:36]}  Bc5 {[%clk 0:00:01]} 34. Rf5+ {[%clk 0:00:35]}  Kc6 {[%clk 0:00:01]} 35. Kc2 {[%clk 0:00:35]}  Bd6 {[%clk 0:00:02]} 36. Kd3 {[%clk 0:00:35]}  g3 {[%clk 0:00:02]} 37. fxg3 {[%clk 0:00:34]}  Bxg3 {[%clk 0:00:03]} 38. Kc4 {[%clk 0:00:35]}  b5+ {[%clk 0:00:02]} 39. Kb3 {[%clk 0:00:35]}  Bd6 {[%clk 0:00:02]} 40. Rf6 {[%clk 0:00:32]}  Kc5 {[%clk 0:00:03]} 41. Rxd6 {[%clk 0:00:32]}  Kxd6 {[%clk 0:00:03]} 42. Kb4 {[%clk 0:00:32]}  Kc6 {[%clk 0:00:03]} 43. Ka5 {[%clk 0:00:32]}  Kb7 {[%clk 0:00:04]} 44. Kb4 {[%clk 0:00:32]}  Kb6 {[%clk 0:00:04]} 45. Kc3 {[%clk 0:00:31]}  Kc5 {[%clk 0:00:04]} 46. b4+ {[%clk 0:00:32]}  Kd5 {[%clk 0:00:04]} 47. Kd3 {[%clk 0:00:32]}  Ke5 {[%clk 0:00:04]} 48. Ke3 {[%clk 0:00:32]}  Kd5 {[%clk 0:00:04]} 49. Kd3 {[%clk 0:00:30]}  Ke5 {[%clk 0:00:04]} 50. Ke3 {[%clk 0:00:31]}  Kd5 {[%clk 0:00:04]} 51. Kd3 {[%clk 0:00:31]} 1/2-1/2


[Site "https://www.chess.com"]

[Event "Titled Tuesday Blitz April 26 Late 2022"]
[White "Karttunen, Mika"]
[Black "Shimanov, Aleksandr"]
[WhiteFideId "502081"]
[BlackFideId "4198603"]
[WhiteElo "2343"]
[BlackElo "2636"]
[Result "0-1"]
[Round "03"]
[TimeControl "180+1"]
[Date "2022.04.26"]
[WhiteClock "0:00:13"]
[BlackClock "0:00:50"]

1. d4 {[%clk 0:03:00]}  Nf6 {[%clk 0:02:58]} 2. c4 {[%clk 0:03:00]}  g6 {[%clk 0:02:59]} 3. Nc3 {[%clk 0:02:58]}  Bg7 {[%clk 0:02:59]} 4. e4 {[%clk 0:02:57]}  O-O {[%clk 0:03:00]} 5. Nf3 {[%clk 0:02:53]}  d6 {[%clk 0:03:00]} 6. h3 {[%clk 0:02:52]}  Na6 {[%clk 0:02:56]} 7. Be2 {[%clk 0:02:48]}  e5 {[%clk 0:02:55]} 8. d5 {[%clk 0:02:46]}  Nc5 {[%clk 0:02:55]} 9. Nd2 {[%clk 0:02:33]}  a5 {[%clk 0:02:52]} 10. b3 {[%clk 0:02:14]}  Nfd7 {[%clk 0:02:45]} 11. g4 {[%clk 0:01:52]}  f5 {[%clk 0:02:40]} 12. gxf5 {[%clk 0:01:47]}  gxf5 {[%clk 0:02:41]} 13. exf5 {[%clk 0:01:38]}  e4 {[%clk 0:02:40]} 14. Rg1 {[%clk 0:01:29]}  Kh8 {[%clk 0:02:35]} 15. Rxg7 {[%clk 0:01:28]}  Kxg7 {[%clk 0:02:36]} 16. Ndxe4 {[%clk 0:01:26]}  Nxe4 {[%clk 0:01:23]} 17. Nxe4 {[%clk 0:01:25]}  Qh4 {[%clk 0:01:24]} 18. Qd4+ {[%clk 0:01:16]}  Kg8 {[%clk 0:01:17]} 19. Bb2 {[%clk 0:00:57]}  Ne5 {[%clk 0:01:17]} 20. O-O-O {[%clk 0:00:55]}  Bxf5 {[%clk 0:01:14]} 21. Rg1+ {[%clk 0:00:50]}  Bg6 {[%clk 0:01:13]} 22. Bg4 {[%clk 0:00:42]}  Rf4 {[%clk 0:01:00]} 23. Be6+ {[%clk 0:00:29]}  Kf8 {[%clk 0:00:59]} 24. f3 {[%clk 0:00:25]}  Rxf3 {[%clk 0:00:57]} 25. Rxg6 {[%clk 0:00:13]}  hxg6 {[%clk 0:00:55]} 26. Kb1 {[%clk 0:00:13]}  Qe1+ {[%clk 0:00:52]} 27. Bc1 {[%clk 0:00:13]}  Rf1 {[%clk 0:00:50]} 0-1


[Site "https://www.chess.com"]

[Event "Titled Tuesday Blitz April 26 Late 2022"]
[White "Kim, Sergey"]
[Black "Romero Ruscalleda, Josep"]
[WhiteFideId "13700570"]
[BlackFideId "2231859"]
[WhiteElo "2508"]
[BlackElo "2310"]
[Result "0-1"]
[Round "03"]
[TimeControl "180+1"]
[Date "2022.04.26"]
[WhiteClock "0:02:43"]
[BlackClock "0:02:45"]

1. d4 {[%clk 0:03:00]}  g6 {[%clk 0:03:00]} 2. c4 {[%clk 0:03:01]}  Bg7 {[%clk 0:03:01]} 3. Nc3 {[%clk 0:03:01]}  d6 {[%clk 0:03:02]} 4. e4 {[%clk 0:03:00]}  e5 {[%clk 0:03:02]} 5. Nge2 {[%clk 0:02:59]}  Nc6 {[%clk 0:03:01]} 6. Be3 {[%clk 0:02:59]}  exd4 {[%clk 0:03:01]} 7. Nxd4 {[%clk 0:02:58]}  Nge7 {[%clk 0:03:02]} 8. Qd2 {[%clk 0:02:57]}  O-O {[%clk 0:03:02]} 9. Nc2 {[%clk 0:02:49]}  f5 {[%clk 0:03:00]} 10. Be2 {[%clk 0:02:48]}  fxe4 {[%clk 0:02:48]} 11. Nxe4 {[%clk 0:02:47]}  Nf5 {[%clk 0:02:48]} 12. Bg5 {[%clk 0:02:45]}  Qe8 {[%clk 0:02:48]} 13. O-O-O {[%clk 0:02:43]}  Qxe4 {[%clk 0:02:45]} 0-1


[Site "https://www.chess.com"]

[Event "Titled Tuesday Blitz April 26 Late 2022"]
[White "Kosteniuk, Alexandra"]
[Black "Papp, Petra"]
[WhiteFideId "4128125"]
[BlackFideId "739049"]
[WhiteElo "2469"]
[BlackElo "2259"]
[Result "1/2-1/2"]
[Round "03"]
[TimeControl "180+1"]
[Date "2022.04.26"]
[WhiteClock "0:00:24"]
[BlackClock "0:00:05"]

1. e4 {[%clk 0:03:00]}  c6 {[%clk 0:02:51]} 2. Nc3 {[%clk 0:02:59]}  d5 {[%clk 0:02:51]} 3. Nf3 {[%clk 0:03:00]}  dxe4 {[%clk 0:02:51]} 4. Nxe4 {[%clk 0:03:00]}  Nf6 {[%clk 0:02:52]} 5. Qe2 {[%clk 0:03:00]}  Nxe4 {[%clk 0:02:52]} 6. Qxe4 {[%clk 0:03:01]}  Qa5 {[%clk 0:02:52]} 7. b4 {[%clk 0:02:54]}  Qd5 {[%clk 0:02:47]} 8. Qxd5 {[%clk 0:02:46]}  cxd5 {[%clk 0:02:47]} 9. b5 {[%clk 0:02:44]}  Bf5 {[%clk 0:02:23]} 10. c3 {[%clk 0:02:37]}  e6 {[%clk 0:02:20]} 11. a4 {[%clk 0:02:36]}  Nd7 {[%clk 0:02:19]} 12. Nd4 {[%clk 0:02:35]}  Bg6 {[%clk 0:02:16]} 13. d3 {[%clk 0:02:31]}  Bd6 {[%clk 0:02:14]} 14. Ba3 {[%clk 0:02:28]}  Ke7 {[%clk 0:02:11]} 15. Kd2 {[%clk 0:02:23]}  Rac8 {[%clk 0:02:05]} 16. h4 {[%clk 0:02:13]}  h5 {[%clk 0:02:03]} 17. Bxd6+ {[%clk 0:02:04]}  Kxd6 {[%clk 0:02:02]} 18. Be2 {[%clk 0:02:04]}  Nc5 {[%clk 0:01:48]} 19. Ra3 {[%clk 0:02:04]}  e5 {[%clk 0:01:45]} 20. Nc2 {[%clk 0:02:03]}  Ne6 {[%clk 0:01:42]} 21. g3 {[%clk 0:02:02]}  f6 {[%clk 0:01:38]} 22. Rb1 {[%clk 0:02:00]}  Bf7 {[%clk 0:01:31]} 23. a5 {[%clk 0:01:59]}  g5 {[%clk 0:01:27]} 24. Ra4 {[%clk 0:01:51]}  Nc5 {[%clk 0:01:19]} 25. Rab4 {[%clk 0:01:51]}  b6 {[%clk 0:01:14]} 26. axb6 {[%clk 0:01:48]}  axb6 {[%clk 0:01:13]} 27. f3 {[%clk 0:01:34]}  Ra8 {[%clk 0:01:10]} 28. d4 {[%clk 0:01:35]}  Ne6 {[%clk 0:01:04]} 29. Ne3 {[%clk 0:01:32]}  Bg6 {[%clk 0:01:00]} 30. dxe5+ {[%clk 0:01:23]}  fxe5 {[%clk 0:00:56]} 31. Rd1 {[%clk 0:01:23]}  gxh4 {[%clk 0:00:50]} 32. Rxh4 {[%clk 0:01:22]}  Nc7 {[%clk 0:00:46]} 33. Ke1 {[%clk 0:01:19]}  Kc5 {[%clk 0:00:46]} 34. Rd2 {[%clk 0:00:58]}  Ra1+ {[%clk 0:00:42]} 35. Kf2 {[%clk 0:00:58]}  Rf8 {[%clk 0:00:39]} 36. f4 {[%clk 0:00:55]}  d4 {[%clk 0:00:35]} 37. cxd4+ {[%clk 0:00:53]}  exd4 {[%clk 0:00:34]} 38. Nc2 {[%clk 0:00:53]}  Ra2 {[%clk 0:00:18]} 39. f5 {[%clk 0:00:48]}  Rxf5+ {[%clk 0:00:17]} 40. Ke1 {[%clk 0:00:48]}  Re5 {[%clk 0:00:16]} 41. Nxd4 {[%clk 0:00:43]}  Rxd2 {[%clk 0:00:12]} 42. Kxd2 {[%clk 0:00:44]}  Rd5 {[%clk 0:00:12]} 43. Ke3 {[%clk 0:00:41]}  Re5+ {[%clk 0:00:09]} 44. Kf2 {[%clk 0:00:38]}  Nd5 {[%clk 0:00:05]} 45. Nb3+ {[%clk 0:00:35]}  Kd6 {[%clk 0:00:06]} 46. Nd2 {[%clk 0:00:35]}  Kc5 {[%clk 0:00:05]} 47. Nf3 {[%clk 0:00:33]}  Rf5 {[%clk 0:00:04]} 48. Kg1 {[%clk 0:00:32]}  Ne3 {[%clk 0:00:04]} 49. Nd4 {[%clk 0:00:30]}  Rg5 {[%clk 0:00:03]} 50. Kf2 {[%clk 0:00:29]}  Ng4+ {[%clk 0:00:03]} 51. Bxg4 {[%clk 0:00:28]}  Rxg4 {[%clk 0:00:03]} 52. Ne6+ {[%clk 0:00:26]}  Kd6 {[%clk 0:00:02]} 53. Nf4 {[%clk 0:00:25]}  Rxh4 {[%clk 0:00:02]} 54. gxh4 {[%clk 0:00:25]}  Be8 {[%clk 0:00:02]} 55. Ke3 {[%clk 0:00:24]}  Bxb5 {[%clk 0:00:03]} 56. Nxh5 {[%clk 0:00:24]}  Be8 {[%clk 0:00:04]} 57. Ng7 {[%clk 0:00:24]}  Bg6 {[%clk 0:00:03]} 58. Kf4 {[%clk 0:00:24]}  b5 {[%clk 0:00:04]} 59. Kg5 {[%clk 0:00:24]}  Bh7 {[%clk 0:00:03]} 60. Nf5+ {[%clk 0:00:23]}  Bxf5 {[%clk 0:00:02]} 61. Kxf5 {[%clk 0:00:23]}  b4 {[%clk 0:00:02]} 62. Ke4 {[%clk 0:00:24]}  Ke6 {[%clk 0:00:02]} 63. Kd4 {[%clk 0:00:24]}  Kf6 {[%clk 0:00:02]} 64. Kc4 {[%clk 0:00:24]}  Kg6 {[%clk 0:00:03]} 65. Kxb4 {[%clk 0:00:24]}  Kh5 {[%clk 0:00:04]} 66. Kc5 {[%clk 0:00:24]}  Kxh4 {[%clk 0:00:05]} 1/2-1/2


[Site "https://www.chess.com"]

[Event "Titled Tuesday Blitz April 26 Late 2022"]
[White "Kujawski, Adam"]
[Black "Sliwicka, Alicja"]
[WhiteFideId "1100920"]
[BlackFideId "1150677"]
[WhiteElo "2053"]
[BlackElo "2120"]
[Result "0-1"]
[Round "03"]
[TimeControl "180+1"]
[Date "2022.04.26"]
[WhiteClock "0:00:02"]
[BlackClock "0:00:39"]

1. d4 {[%clk 0:03:00]}  Nf6 {[%clk 0:02:59]} 2. Nf3 {[%clk 0:03:00]}  c5 {[%clk 0:02:59]} 3. d5 {[%clk 0:03:00]}  e6 {[%clk 0:02:58]} 4. Nc3 {[%clk 0:03:00]}  b5 {[%clk 0:02:52]} 5. dxe6 {[%clk 0:02:58]}  fxe6 {[%clk 0:02:51]} 6. Nxb5 {[%clk 0:02:58]}  d5 {[%clk 0:02:50]} 7. e4 {[%clk 0:02:46]}  a6 {[%clk 0:02:29]} 8. e5 {[%clk 0:02:15]}  axb5 {[%clk 0:02:22]} 9. exf6 {[%clk 0:02:14]}  gxf6 {[%clk 0:02:11]} 10. Bxb5+ {[%clk 0:02:14]}  Bd7 {[%clk 0:02:10]} 11. Bxd7+ {[%clk 0:02:04]}  Qxd7 {[%clk 0:02:11]} 12. O-O {[%clk 0:02:04]}  Bd6 {[%clk 0:02:08]} 13. Re1 {[%clk 0:02:03]}  O-O {[%clk 0:01:58]} 14. Bh6 {[%clk 0:02:02]}  Re8 {[%clk 0:01:49]} 15. c4 {[%clk 0:01:29]}  d4 {[%clk 0:01:43]} 16. Nh4 {[%clk 0:01:17]}  Nc6 {[%clk 0:01:40]} 17. Qh5 {[%clk 0:01:00]}  Qf7 {[%clk 0:01:34]} 18. Qxf7+ {[%clk 0:00:53]}  Kxf7 {[%clk 0:01:35]} 19. Bd2 {[%clk 0:00:35]}  Ra7 {[%clk 0:01:14]} 20. f4 {[%clk 0:00:34]}  Rea8 {[%clk 0:01:11]} 21. a3 {[%clk 0:00:32]}  Rb8 {[%clk 0:01:11]} 22. Rab1 {[%clk 0:00:21]}  Rab7 {[%clk 0:01:11]} 23. b4 {[%clk 0:00:17]}  cxb4 {[%clk 0:01:08]} 24. axb4 {[%clk 0:00:18]}  Nxb4 {[%clk 0:01:05]} 25. Bxb4 {[%clk 0:00:18]}  Rxb4 {[%clk 0:01:02]} 26. Rxb4 {[%clk 0:00:17]}  Rxb4 {[%clk 0:01:03]} 27. Nf3 {[%clk 0:00:13]}  Rxc4 {[%clk 0:01:01]} 28. Rd1 {[%clk 0:00:12]}  Bxf4 {[%clk 0:01:00]} 29. g3 {[%clk 0:00:12]}  Be3+ {[%clk 0:01:00]} 30. Kg2 {[%clk 0:00:11]}  e5 {[%clk 0:01:00]} 31. g4 {[%clk 0:00:11]}  e4 {[%clk 0:00:59]} 32. Nh4 {[%clk 0:00:10]}  Rc2+ {[%clk 0:00:56]} 33. Kh3 {[%clk 0:00:08]}  d3 {[%clk 0:00:49]} 34. Nf5 {[%clk 0:00:07]}  Bf4 {[%clk 0:00:49]} 35. Ng3 {[%clk 0:00:04]}  Bxg3 {[%clk 0:00:44]} 36. Kxg3 {[%clk 0:00:03]}  Ke6 {[%clk 0:00:41]} 37. Kf4 {[%clk 0:00:03]}  Kd5 {[%clk 0:00:41]} 38. h4 {[%clk 0:00:03]}  Rf2+ {[%clk 0:00:39]} 39. Ke3 {[%clk 0:00:02]}  Rf3+ {[%clk 0:00:38]} 40. Kd2 {[%clk 0:00:02]}  Kd4 {[%clk 0:00:39]} 0-1


[Site "https://www.chess.com"]

[Event "Titled Tuesday Blitz April 26 Late 2022"]
[White "Lashkin, Jegor"]
[Black "Bortnyk, Olexandr"]
[WhiteFideId "13907808"]
[BlackFideId "14120828"]
[WhiteElo "2368"]
[BlackElo "2723"]
[Result "1-0"]
[Round "03"]
[TimeControl "180+1"]
[Date "2022.04.26"]
[WhiteClock "0:00:12"]
[BlackClock "0:00:01"]

1. d4 {[%clk 0:03:00]}  d6 {[%clk 0:02:59]} 2. Nf3 {[%clk 0:03:00]}  Nf6 {[%clk 0:02:59]} 3. c4 {[%clk 0:03:00]}  g6 {[%clk 0:02:59]} 4. Nc3 {[%clk 0:03:01]}  Bf5 {[%clk 0:02:59]} 5. d5 {[%clk 0:02:55]}  c5 {[%clk 0:02:56]} 6. Nh4 {[%clk 0:02:44]}  Bd7 {[%clk 0:02:54]} 7. e4 {[%clk 0:02:43]}  Bg7 {[%clk 0:02:53]} 8. h3 {[%clk 0:02:41]}  O-O {[%clk 0:02:49]} 9. Nf3 {[%clk 0:02:38]}  Na6 {[%clk 0:02:49]} 10. Bd3 {[%clk 0:02:36]}  Nc7 {[%clk 0:02:45]} 11. O-O {[%clk 0:02:36]}  a6 {[%clk 0:02:30]} 12. a4 {[%clk 0:02:35]}  b5 {[%clk 0:02:29]} 13. axb5 {[%clk 0:02:34]}  axb5 {[%clk 0:02:30]} 14. Rxa8 {[%clk 0:02:34]}  Qxa8 {[%clk 0:02:31]} 15. cxb5 {[%clk 0:02:33]}  Rb8 {[%clk 0:02:31]} 16. Bc4 {[%clk 0:02:05]}  Nxb5 {[%clk 0:02:14]} 17. e5 {[%clk 0:01:59]}  Nxc3 {[%clk 0:01:38]} 18. bxc3 {[%clk 0:01:57]}  Ba4 {[%clk 0:01:32]} 19. Qd3 {[%clk 0:01:52]}  dxe5 {[%clk 0:00:56]} 20. Nxe5 {[%clk 0:01:53]}  Rd8 {[%clk 0:00:37]} 21. d6 {[%clk 0:01:36]}  Rxd6 {[%clk 0:00:33]} 22. Bxf7+ {[%clk 0:01:36]}  Kf8 {[%clk 0:00:34]} 23. Qc4 {[%clk 0:01:10]}  Qe4 {[%clk 0:00:23]} 24. Qxc5 {[%clk 0:00:59]}  Ne8 {[%clk 0:00:03]} 25. Bxe8 {[%clk 0:00:28]}  Bxe8 {[%clk 0:00:03]} 26. Nf3 {[%clk 0:00:19]}  Qd5 {[%clk 0:00:03]} 27. Qe3 {[%clk 0:00:18]}  Bf6 {[%clk 0:00:03]} 28. Qh6+ {[%clk 0:00:17]}  Kg8 {[%clk 0:00:03]} 29. Re1 {[%clk 0:00:15]}  Bc6 {[%clk 0:00:01]} 30. Bg5 {[%clk 0:00:13]}  Bxc3 {[%clk 0:00:01]} 31. Rxe7 {[%clk 0:00:11]}  Qd1+ {[%clk 0:00:01]} 32. Kh2 {[%clk 0:00:12]} 1-0


[Site "https://www.chess.com"]

[Event "Titled Tuesday Blitz April 26 Late 2022"]
[White "Le Goff, Ronan"]
[Black "Rozman, Levy"]
[WhiteFideId "612073"]
[BlackFideId "2039877"]
[WhiteElo "2276"]
[BlackElo "2376"]
[Result "0-1"]
[Round "03"]
[TimeControl "180+1"]
[Date "2022.04.26"]
[WhiteClock "0:00:02"]
[BlackClock "0:00:04"]

1. d4 {[%clk 0:03:00]}  Nf6 {[%clk 0:02:58]} 2. Nf3 {[%clk 0:03:01]}  e6 {[%clk 0:02:55]} 3. Bg5 {[%clk 0:03:00]}  h6 {[%clk 0:02:53]} 4. Bh4 {[%clk 0:02:58]}  c5 {[%clk 0:02:52]} 5. e3 {[%clk 0:02:56]}  b6 {[%clk 0:02:47]} 6. Nc3 {[%clk 0:02:55]}  cxd4 {[%clk 0:02:41]} 7. exd4 {[%clk 0:02:53]}  d5 {[%clk 0:02:40]} 8. Ne5 {[%clk 0:02:43]}  Be7 {[%clk 0:02:35]} 9. Bxf6 {[%clk 0:02:21]}  Bxf6 {[%clk 0:02:33]} 10. Bb5+ {[%clk 0:02:20]}  Nd7 {[%clk 0:02:14]} 11. Nxd7 {[%clk 0:01:43]}  Bxd7 {[%clk 0:02:11]} 12. Bxd7+ {[%clk 0:01:44]}  Qxd7 {[%clk 0:02:10]} 13. O-O {[%clk 0:01:42]}  Rc8 {[%clk 0:02:05]} 14. Ne2 {[%clk 0:01:42]}  O-O {[%clk 0:02:05]} 15. c3 {[%clk 0:01:42]}  Qb5 {[%clk 0:01:56]} 16. Rb1 {[%clk 0:01:34]}  Qa6 {[%clk 0:01:48]} 17. a3 {[%clk 0:01:34]}  Qc4 {[%clk 0:01:43]} 18. Nf4 {[%clk 0:01:32]}  a5 {[%clk 0:01:41]} 19. Re1 {[%clk 0:01:25]}  Rfe8 {[%clk 0:01:38]} 20. Qg4 {[%clk 0:01:09]}  g6 {[%clk 0:01:20]} 21. h4 {[%clk 0:01:02]}  Kh7 {[%clk 0:01:15]} 22. h5 {[%clk 0:00:58]}  g5 {[%clk 0:01:13]} 23. Ne2 {[%clk 0:00:50]}  b5 {[%clk 0:01:04]} 24. Qf3 {[%clk 0:00:47]}  Kg7 {[%clk 0:01:05]} 25. Qe3 {[%clk 0:00:39]}  b4 {[%clk 0:01:01]} 26. axb4 {[%clk 0:00:33]}  axb4 {[%clk 0:01:02]} 27. b3 {[%clk 0:00:31]}  Qb5 {[%clk 0:00:55]} 28. cxb4 {[%clk 0:00:20]}  Qxb4 {[%clk 0:00:56]} 29. Ng3 {[%clk 0:00:16]}  Qxd4 {[%clk 0:00:45]} 30. Qf3 {[%clk 0:00:13]}  Rc3 {[%clk 0:00:41]} 31. Re3 {[%clk 0:00:06]}  Rxe3 {[%clk 0:00:37]} 32. fxe3 {[%clk 0:00:07]}  Qe5 {[%clk 0:00:32]} 33. Rf1 {[%clk 0:00:06]}  Rb8 {[%clk 0:00:31]} 34. e4 {[%clk 0:00:05]}  d4 {[%clk 0:00:32]} 35. Qd3 {[%clk 0:00:04]}  Qb5 {[%clk 0:00:28]} 36. Qf3 {[%clk 0:00:03]}  Qe5 {[%clk 0:00:24]} 37. Qd3 {[%clk 0:00:03]}  Rc8 {[%clk 0:00:24]} 38. Ne2 {[%clk 0:00:03]}  Be7 {[%clk 0:00:20]} 39. Qf3 {[%clk 0:00:02]}  f6 {[%clk 0:00:18]} 40. Qd3 {[%clk 0:00:02]}  Rd8 {[%clk 0:00:11]} 41. Kh1 {[%clk 0:00:02]}  Bd6 {[%clk 0:00:11]} 42. g3 {[%clk 0:00:02]}  Rf8 {[%clk 0:00:09]} 43. b4 {[%clk 0:00:02]}  f5 {[%clk 0:00:09]} 44. exf5 {[%clk 0:00:01]}  Rxf5 {[%clk 0:00:07]} 45. Rxf5 {[%clk 0:00:01]}  exf5 {[%clk 0:00:06]} 46. Nxd4 {[%clk 0:00:01]}  Bxb4 {[%clk 0:00:02]} 47. Nxf5+ {[%clk 0:00:01]}  Kf6 {[%clk 0:00:02]} 48. Ne3 {[%clk 0:00:01]}  Ke6 {[%clk 0:00:01]} 49. Qg6+ {[%clk 0:00:01]}  Kd7 {[%clk 0:00:02]} 50. Nf5 {[%clk 0:00:01]}  Qe4+ {[%clk 0:00:02]} 51. Kh2 {[%clk 0:00:01]}  Qe2+ {[%clk 0:00:03]} 52. Kh3 {[%clk 0:00:01]}  Qf1+ {[%clk 0:00:03]} 53. Kh2 {[%clk 0:00:02]}  Qe2+ {[%clk 0:00:03]} 54. Kh3 {[%clk 0:00:02]}  Bc5 {[%clk 0:00:04]} 55. Qf7+ {[%clk 0:00:02]}  Kc6 {[%clk 0:00:04]} 56. Qf6+ {[%clk 0:00:02]}  Kb5 {[%clk 0:00:04]} 57. Nd6+ {[%clk 0:00:02]}  Kb4 {[%clk 0:00:04]} 0-1


[Site "https://www.chess.com"]